Cogmind - Beta 10.1 *** ADVENTURER MODE // 2021.10.22 @ 23:11:16 Player: Mike Hawk Result: Destroyed by Y-45 Defender with Heavy Assault Rifle Performance ------------- Evolutions (1) 500 Regions Visited (2) 400 Robots Destroyed (33) 165 Value Destroyed (701) 701 Prototype IDs (5) 100 Alien Tech Used (0) 0 Bonus (0) 0 TOTAL SCORE: 1866 Bonus ------- None Cogmind --------- Core Integrity 0/400 Matter 300/300 Energy 100/100 System Corruption 0% Temperature Cool (9) Movement Core (550) Ox10 Location -9/Materials Parts ------- > --- POWER (2) -------- (None) > --- PROPULSION (2) --- (None) > --- UTILITY (3) ------ High-capacity Storage Unit > --- WEAPON (2) ------- (None) > --- INVENTORY (12) --- Light Ion Engine Heat Sink Improved EM Shotgun Beam Cannon Beam Cannon Assault Rifle Grenade Launcher Rocket Launcher Rocket Launcher Peak State ------------ > --- POWER ------------ Ion Engine Light Ion Engine > --- PROPULSION ------- Wheel Compact Wheel > --- UTILITY ---------- High-capacity Storage Unit High-capacity Battery High-capacity Matter Pod > --- WEAPON ----------- Beam Cannon Rocket Launcher > --- INVENTORY -------- Light Ion Engine Heat Sink EM Shotgun Beam Cannon Beam Cannon Assault Rifle Light Cannon Grenade Launcher Rocket Launcher [Rating: 11] Favorites ----------- Power Ion Engine Engine Ion Engine Propulsion Wheel Wheel Wheel Utility High-capacity Battery Device Heat Sink Storage High-capacity Battery Weapon Rocket Launcher Energy Gun EM Pulse Gun Energy Cannon Beam Cannon Ballistic Gun Light Assault Rifle Ballistic Cannon Light Cannon Launcher Rocket Launcher Build | -11 -10 -9 ------- Run | Scr Mat Mat Slots Evolved 2 | . . 2 Power 1 | . . 1 Propulsion . | . . . Utility 1 | . . 1 Weapon . | . . . Parts Attached 26 | 6 17 3 Power 4 | 1 2 1 Engine 4 | 1 2 1 Core . | . . . Reactor . | . . . Propulsion 6 | 2 4 . Treads . | . . . Leg . | . . . Wheel 6 | 2 4 . Hover . | . . . Flight . | . . . Utility 7 | 1 5 1 Device 1 | 1 . . Storage 6 | . 5 1 Processor . | . . . Hackware . | . . . Protection . | . . . Artifact . | . . . Weapon 9 | 2 6 1 Energy Gun 3 | 1 2 . Energy Cannon 3 | . 3 . Ballistic Gun 1 | 1 . . Ballistic Cannon 1 | . . 1 Launcher 1 | . 1 . Special Weapon . | . . . Impact Weapon . | . . . Slashing Weapon . | . . . Piercing Weapon . | . . . Special Melee Weapon . | . . . Unidentified Prototypes . | . . . Parts Lost 8 | . . 8 Power 2 | . . 2 Propulsion 2 | . . 2 Utility 2 | . . 2 Weapon 2 | . . 2 Highest Loss Streak 8 | . . 8 Average Slot Usage (%) 98 | . 99 85 Engine 14 | . 14 17 Wheel 26 | . 28 18 Storage 27 | . 26 31 Energy Gun 3 | . 4 . Energy Cannon 10 | . 10 8 Ballistic Gun 1 | . 1 . Launcher 11 | . 12 4 Naked Turns . | . . . Heaviest Build 55 | 7 48 55 Greatest Support 26 | 20 26 26 Greatest Overweight (x) 13 | . 1 13 Average Overweight (x) . | . . 2 Largest Inventory Capacity 12 | 4 12 12 Average Capacity 7 | 4 6 12 Most Carried 11 | 2 10 11 Average Carried 5 | . 4 9 Final Capacity 12 | 4 12 12 Final Carried 10 | 1 10 9 Class Distribution -------------------- 100% | Mutant Dominant Class ---------------- Mutant | -10/Materials Mutant | -9/Materials Resources | -11 -10 -9 ----------- Run | Scr Mat Mat Matter Collected 912 | 262 615 35 Remotely . | . . . Salvage Created 571 | 36 476 59 Parts 61 | 3 48 10 Haulers Intercepted 1 | . 1 . Recyclers Shooed 1 | . . 1 Parts Field Recycled . | . . . Retrieved Matter . | . . . Parts Self-Destructed . | . . . Prevented . | . . . Kills | -11 -10 -9 ------- Run | Scr Mat Mat Combat Hostiles Destroyed 20 | 1 14 5 Guns 8 | 1 7 . Cannons 6 | . 3 3 AOE 6 | . 4 2 Classes Destroyed 7 | 1 6 . Worker 5 | . 4 1 Builder 2 | . 2 . Tunneler 1 | . 1 . Hauler 1 | . 1 . Watcher 4 | . 3 1 Swarmer 10 | . 6 4 Grunt 10 | 1 8 1 Best Kill Streak 7 | 1 7 5 Combat Bots Only 6 | 1 6 4 Max Kills in Single Turn 2 | 1 2 1 Gunslinging . | . . . Exploded 2 | . 2 1 Melee . | . . . Uniques/NPCs Destroyed . | . . . Combat | -11 -10 -9 -------- Run | Scr Mat Mat Damage Taken 1318 | 16 365 937 Core 523 | . 121 402 Absorbed by Shields . | . . . Core Remaining (%) 75 | 100 51 . Volleys Fired 84 | 2 64 18 Largest 2 | 2 2 2 Hottest 95 | 60 93 95 Shots Fired 134 | 4 100 30 Gun 40 | 4 36 . Cannon 70 | . 44 26 Launcher 24 | . 20 4 Special . | . . . Kinetic 31 | 2 15 14 Thermal 56 | . 44 12 Explosive 24 | . 20 4 Electromagnetic 23 | 2 21 . Robot Hit Streak 7 | 2 7 6 Robot Miss Streak 4 | 1 4 3 Penetration Max . | . . . Secondary Targets 1 | . 1 . Max Gunslinging Chain 1 | . 1 . Shots Hit Robots 73 | 2 56 15 Core Hits 46 | 1 34 11 Critical Hits 1 | . . 1 Critical Kills 1 | . . 1 Critical Parts Destroyed . | . . . Melee Attacks . | . . . Impact . | . . . Slashing . | . . . Piercing . | . . . Sneak Attacks . | . . . Combat Hostiles . | . . . Follow-up Attacks . | . . . Damage Inflicted 2038 | 40 1342 656 Guns 255 | 40 215 . Cannons 663 | . 401 262 Explosions 1099 | . 726 373 Melee . | . . . Ramming 21 | . . 21 Kinetic 182 | 10 48 124 Thermal 704 | . 401 303 Explosive 934 | . 726 208 Electromagnetic 197 | 30 167 . Impact . | . . . Slashing . | . . . Piercing . | . . . Highest Corruption . | . . . Average Corruption . | . . . Corruption Purged . | . . . Overload Shots . | . . . Overflow Damage 140 | . 54 86 Projectiles 22 | . 14 8 Explosions 118 | . 40 78 Melee . | . . . Knockbacks . | . . . Impact . | . . . Kinetic . | . . . Secondary . | . . . Self-Inflicted Damage 85 | . 66 19 Shots 4 | . 3 1 Rammed 4 | . . 4 Targets Rammed 4 | . . 4 Kicked . | . . . Crushed . | . . . Highest Temperature 294 | 32 170 294 Average Temperature 68 | 19 42 127 Received Heat Transfer 558 | 12 84 462 Siege Activations . | . . . Robots Corrupted . | . . . Combat Hostiles . | . . . Parts Fried 1 | . 1 . Impact Corruptions . | . . . Robots Melted . | . . . Combat Hostiles . | . . . Parts Melted 4 | . 4 . Heat Transferred 1247 | . 851 396 Parts Sabotaged . | . . . Parts Stolen . | . . . Parts Stripped . | . . . Power Chain Reactions . | . . . Missiles Intercepted . | . . . Alert | -11 -10 -9 ------- Run | Scr Mat Mat Peak Influence 203 | 20 203 169 Initial 11 | . 11 1 Average 52 | 7 50 78 Maximum Alert Level 1 | . 1 . Low Security (%) 95 | 100 95 100 Level 1 4 | . 4 . Level 2 . | . . . Level 3 . | . . . Level 4 . | . . . Level 5 . | . . . High Security . | . . . Max Security . | . . . Squads Dispatched 2 | . 2 . Investigation 2 | . 2 . Extermination . | . . . Reinforcement . | . . . Assault . | . . . Garrison . | . . . Intercept . | . . . Construction Impeded . | . . . Haulers Reinforced . | . . . Stealth | -11 -10 -9 --------- Run | Scr Mat Mat Distress Signals 1 | . 1 . Communications Jammed . | . . . Distress Signals . | . . . Times Spotted 36 | 1 20 15 Peak Tracking Total 6 | 1 6 4 Tactical Retreats 4 | . . 4 Traps | -11 -10 -9 ------- Run | Scr Mat Mat Traps Triggered 2 | . 2 . Indirectly . | . . . Trap Hack Attempts . | . . . Triggered . | . . . Disarmed . | . . . Reprogrammed . | . . . Reused . | . . . Traps Extracted . | . . . Installed . | . . . Triggered . | . . . Machines | -11 -10 -9 ---------- Run | Scr Mat Mat Machines Disabled 16 | . 12 4 Max in Single Turn 2 | . 2 2 Machines Sabotaged . | . . . Garrisons Compromised . | . . . Overloaded Fab Kills . | . . . Fab Network Shutdowns . | . . . Hacking | -11 -10 -9 --------- Run | Scr Mat Mat Machines Accessed 7 | . 7 . Terminals 7 | . 7 . Fabricators . | . . . Repair Stations . | . . . Recycling Units . | . . . Scanalyzers . | . . . Garrison Access . | . . . Total Hacks 24 | . 24 . Successful 20 | . 20 . Failed 4 | . 4 . Catastrophic . | . . . Database Lockouts . | . . . Manual 1 | . 1 . Terminals 24 | . 24 . Fabricators . | . . . Repair Stations . | . . . Recycling Units . | . . . Scanalyzers . | . . . Garrison Access . | . . . Terminal Hacks 20 | . 20 . Record 3 | . 3 . Prototype ID Bank 3 | . 3 . Emergency Access Points 2 | . 2 . Unreport Threat 2 | . 2 . Locate Traps 1 | . 1 . Dispatch Records 1 | . 1 . Maintenance Status 2 | . 2 . Security Status 1 | . 1 . Patrol Status 1 | . 1 . Hauler Manifests 1 | . 1 . Zone Layout 3 | . 3 . Fabricator Hacks . | . . . Repair Station Hacks . | . . . Recycling Unit Hacks . | . . . Scanalyzer . | . . . Garrison Access Hacks . | . . . Unauthorized Hacks . | . . . Terminals . | . . . Fabricators . | . . . Repair Stations . | . . . Recycling Units . | . . . Scanalyzers . | . . . Garrison Access . | . . . Data Cores Recovered . | . . . Used . | . . . Hacking Detections 5 | . 5 . Full Trace Events 3 | . 3 . Feedback Events . | . . . Feedback Blocked . | . . . Robot Schematics Acquired . | . . . Robots Built . | . . . Matter . | . . . Time . | . . . Total Robot Build Rating . | . . . Part Schematics Acquired . | . . . Parts Built . | . . . Matter . | . . . Time . | . . . Total Part Build Rating . | . . . Parts Repaired . | . . . Time . | . . . Parts Recycled . | . . . Recycled Matter . | . . . Retrieved Matter . | . . . Retrieved Components . | . . . Parts Scanalyzed . | . . . Part Schematics Acquired . | . . . Parts Damaged . | . . . Bothacking | -11 -10 -9 ------------ Run | Scr Mat Mat Used RIF Installer . | . . . Robots Hacked . | . . . Non-combat . | . . . Combat . | . . . Robot Hacks Applied . | . . . Relay Couplers Released . | . . . Robots Rewired . | . . . Allies Hacked . | . . . Hacks Repelled . | . . . Allies | -11 -10 -9 -------- Run | Scr Mat Mat Total Allies . | . . . Largest Group . | . . . Highest-Rated Group . | . . . Highest-Rated Ally . | . . . Total Orders . | . . . Ally Attacks . | . . . Total Damage . | . . . Kills . | . . . Allies Corrupted . | . . . Allies Melted . | . . . Intel | -11 -10 -9 ------- Run | Scr Mat Mat Robot Analysis Total . | . . . Derelict Logs Recovered . | . . . Drone Launches . | . . . Drone Recoveries . | . . . Exploration | -11 -10 -9 ------------- Run | Scr Mat Mat Turns Passed 2888 | 82 2458 348 Spaces Moved 2280 | 83 1992 205 Core 23 | 16 . 7 Treads . | . . . Legs . | . . . Wheels 2257 | 67 1992 198 Hover . | . . . Flight . | . . . Fastest Speed 50 | 50 80 100 Average Speed 89 | 74 86 125 Slowest Speed 700 | 80 100 700 Overloaded Moves . | . . . Propulsion Burnouts . | . . . Robots Hopped . | . . . Cave-ins Triggered . | . . . Exploration Rate (%) 44 | 6 99 28 Regions Visited 2 Branch Regions . Pre-discovered Areas . | . . . Known Exits Taken . | . . . Unknown Exits Taken 2 | 1 1 . Scrap Searched . | . . . Spaces Dug 39 | . 23 16 Terrain Destroyed 145 | . 122 23 Melee . | . . . Projectile . | . . . AOE 145 | . 122 23 Terrain Rammed . | . . . Walls Destroyed . | . . . Machines Disabled . | . . . Actions | -11 -10 -9 --------- Run | Scr Mat Mat Total 2995 | 99 2628 268 Wait 559 | 2 523 34 Move 2278 | 82 1991 205 Hop . | . . . Pick Up 24 | 7 15 2 Fast Attach 3 | . 3 . Attach 14 | 6 5 3 Detach 3 | . 2 1 Swap 9 | . 9 . Drop 17 | . 16 1 Fire 84 | 2 64 18 Melee . | . . . Ram 4 | . . 4 Kick . | . . . Crush . | . . . Escape Stasis . | . . . Rewire . | . . . Trap . | . . . Miscellaneous . | . . . Route ------- -11/Scrapyard -10/Materials (discovered 4 exits: [*Mat x3] / [*Min]) -9/Materials (discovered 1 exit: [*Mat]) History --------- Turn | Location | Event 2 | -11/Scrapyard | Met Revision 17 47 | -11/Scrapyard | Discovered new exit (range 8) 83 | -11/Scrapyard | Entered Materials 105 | -10/Materials | Discovered new exit (range 10) 317 | -10/Materials | Build established: Mutant 445 | -10/Materials | Discovered new exit (range 11) 641 | -10/Materials | Discovered new exit (range 15) 1630 | -10/Materials | Discovered new exit (range 13) 2541 | -10/Materials | Entered another Materials area 2541 | -9/Materials | Evolved 2 slots: Power x1, Utility x1 2711 | -9/Materials | Discovered new exit (range 7) 2858 | -9/Materials | Core integrity fell below 50% 2878 | -9/Materials | Core integrity fell below 20% 2889 | -9/Materials | Destroyed by Y-45 Defender with Heavy Assault Rifle Last Messages --------------- 02791_ K-01 Serf collects debris. 02795_ U-05 Engineer lays Concrete. 02799_ Destroyed Hover Unit. 02802_ Beam Cannon destroyed. 02809_ K-01 Serf cleans the Nuclear Reactor. 02810_ Ion Engine destroyed. 02811_ Wheel destroyed. 02820_ Lgt. Ion Engine destroyed. 02832_ Com. Wheel destroyed. 02844_ Lgt. Cannon destroyed. 02856_ Hcp. Battery destroyed. 02861_ Hcp. Matter Pod destroyed. 02872_ K-01 Serf collects debris. 02874_ G-34 Mercenary destroyed. 02876_ K-01 Serf collects debris. 02883_ A-02 Transporter destroyed. 02884_ R-06 Scavenger collects Imp. Medium Laser. 02885_ K-01 Serf collects debris. 02887_ R-06 Scavenger collects Lgt. Treads. 02888_ K-01 Serf collects debris. Map ----- +----------------------------------------------------+ | | | | | ?????????????????????????????????????????????????? | | ?????????????????????????????????????????????????? | | ?????????????????????????????????????????????????? | | ?????????????????????????????????????????????????? | | ?????????????????????????????????????????????????? | | ?????????????????????????????????????????????????? | | ?????????????????????????????????????????????????? | | ???????????????????????###+###???????????????????? | | ???????????????????????? ####????????????????? | | ???????????????????????? ?????????????????? | | ???????????????????????? ??????????????????? | | ???????????????????????? ??????????????????? | | ????????????? ????????? #???????????????????? | | ?????????######+######### #????????????????????? | | ?????????# % #????????????????????? | | ?????????# < #????????????????????? | | ?????????# #????????????????????? | | ????????????## #????????????????????? | | ????########## = #????????????????????? | | ????#[[! ! # ##???????????????????? | | #####[[! a #???????????????????? | | #[ "T # #???????????????????? | | """ # [ """ # k +???????????????????? | | """ #+######## @ #???????????????????? | | """ # ######"######### #???????????????????? | | + # #######=##r #???????????????????? | | """ # # # #r #???????????????????? | | """ # + # T #[[! #???????????????????? | | """ # # # #%[* #???????????????????? | | # # # #[=k #???????????????????? | | ##### # # +=%[ #???????????????????? | | ????# #####+## """ # Y #???????????????????? | | ????# #???# ## """ #k####???????????????????? | | ????# #???# ## """ # #??????????????????????? | | ????# #???# ## #w#??????????????????????? | | ????# #???# ########### #??????????????????????? | | ????# #???# #?????????# #??????????????????????? | | ????# #??## ##????????# #??????????????????????? | | ##### #??# +????????#a#??????????????????????? | | # #### #????????# #??????????????????????? | | # #????????# #??????????????????????? | | + +????????# #??????????????????????? | | # """ #????????# #??????????????????????? | | T" # """ #????????# #??????????????????????? | | "" # """ #????????# #??????????????????????? | | ##+## #????????# #??????????????????????? | | # #????????? ???????????????????????? | | # ! #????????? ???????????????????????? | +----------------------------------------------------+ Best States ------------- Heat Dissipation 35 Energy Generation 15 Energy Capacity 675 Matter Stores 480 Matter Capacity 500 Sight Range 16 Terrain Scan Density 10 Resistance: KI 20 Resistance: TH 20 Resistance: EX 20 Resistance: EM 20 Resistance: I 20 Resistance: S 20 Resistance: P 20 Evasion (%) 50 Offensive Hacking 10 Item Schematics ----------------- None Robot Schematics ------------------ None Fabricated ------------ Nothing Alien Tech Used ----------------- None Achievements -------------- Shopping List Challenges ------------ None Game ------ Seed DerelictSmartbombBooster Manual? 0 Play Time 00:38:55 Cumulative 3.7 hours Start 2021.08.21 @ 13:45:32 End 2021.10.22 @ 23:11:16 Sessions 5 Manual Loads 0 Difficulty Adventurer Special Mode None Game No. 2 Rogue 0 Adventurer 2 Explorer 0 Win Type - Total 0 Types 0/0/0/0/0/0/0/0/0 Lore% 0 Gallery% 5 Achievement% 5 Wizard Run 0 Options --------- ASCII 0 Keyboard 1 Movement Numpad Keybinds 0 Fullscreen 1 Font 18/SmallcapsGlow Map View 76x50 Tactical HUD 1 Map Filters NONE Filters NONE Steam X RUN: 8a5d59c1-44a4-4b57-b3b8-33df6403a698